fUSD/lending_fUSD_20260106
["ID","MTS","AMOUNT","RATE_DAILY","PERIOD"]
[400565150,1767722446545,-163.14635088,0.00016531,2]
[400565151,1767722451637,-487.81479577,0.00016531,2]
[400565152,1767722453434,-156.21597287,0.00016531,2]
[400565153,1767722496251,-305.21602289,0.000162,2]
[400565154,1767722502189,-243.8679088,0.000162,2]
[400565155,1767722505378,-198.42654115,0.000162,2]
[400565156,1767722510063,-267.25128175,0.000162,2]
[400565157,1767722511606,-179.32824541,0.000162,2]
[400565158,1767722571184,-242.699,0.000162,2]
[400565159,1767722571207,-163.512,0.000162,2]
[400565160,1767722571232,-300.0,0.0001643,2]
[400565161,1767722571269,-9333.91069488,0.00016431,2]
[400565162,1767722571295,-163.03539364,0.00016431,2]
[400565163,1767722571320,-151.0,0.00016521,2]
[400565164,1767722571343,-151.0,0.00016521,2]
[400565165,1767722571367,-151.0,0.00016521,2]
[400565166,1767722571391,-151.0,0.00016521,2]
[400565167,1767722571415,-151.0,0.00016521,2]
[400565168,1767722571440,-151.0,0.00016521,2]
[400565169,1767722571467,-151.0,0.00016521,2]
[400565170,1767722571492,-151.0,0.00016521,2]
[400565171,1767722571520,-151.0,0.00016521,2]
[400565172,1767722571546,-151.0,0.00016521,2]
[400565173,1767722571572,-151.0,0.00016521,2]
[400565174,1767722571596,-500.0,0.0001653,2]
[400565175,1767722571620,-500.0,0.0001653,2]
[400565176,1767722597043,-151.0,0.00016528,2]
[400565177,1767722597069,-482.78321893,0.0001653,2]
[400565178,1767722597098,-300.0,0.0001653,2]
[400565179,1767722597129,-998638.34163044,0.00016531,2]
[400565180,1767722597159,-163.26587176,0.00016531,2]
[400565181,1767722597185,-163.26587176,0.00016531,2]
[400565182,1767722597210,-101.34340711,0.00016531,2]
[400565183,1767722602589,-500.0,0.0001653,2]
[400565184,1767722602618,-500.0,0.0001653,2]
[400565185,1767722602646,-500.0,0.0001653,2]
[400565186,1767722602673,-500.0,0.0001653,2]
[400565187,1767722602701,-500.0,0.0001653,2]
[400565188,1767722602727,-500.0,0.0001653,2]
[400565189,1767722602753,-500.0,0.0001653,2]
[400565190,1767722602779,-500.0,0.0001653,2]
[400565191,1767722602807,-590.50707366,0.0001653,2]
[400565192,1767722602834,-500.0,0.0001653,2]
[400565193,1767722602861,-500.0,0.0001653,2]
[400565194,1767722602886,-500.0,0.0001653,2]
[400565195,1767722602911,-500.0,0.0001653,2]
[400565196,1767722602936,-500.0,0.0001653,2]
[400565197,1767722602961,-500.0,0.0001653,2]
[400565198,1767722602986,-500.0,0.0001653,2]
[400565199,1767722603012,-500.0,0.0001653,2]
[400565200,1767722603044,-500.0,0.0001653,2]
[400565201,1767722603071,-500.0,0.0001653,2]
[400565202,1767722603097,-500.0,0.0001653,2]
[400565203,1767722603123,-500.0,0.0001653,2]
[400565204,1767722603150,-500.0,0.0001653,2]
[400565205,1767722603177,-500.0,0.0001653,2]
[400565206,1767722603203,-500.0,0.0001653,2]
[400565207,1767722603227,-308.83972278,0.00016531,2]
[400565208,1767722603251,-1000.0,0.00016532,2]
[400565209,1767722603278,-10605.9006,0.00016532,2]
[400565210,1767722603332,500.0,0.0001653,2]
[400565211,1767722603383,500.0,0.0001653,2]
[400565212,1767722605204,615.27469484,0.00016532,2]
[400565213,1767722605295,151.0,0.00016532,2]
[400565214,1767722605968,500.0,0.0001653,2]
[400565215,1767722751703,-218.25828281,0.00016529,2]
[400565216,1767722757737,-81.74171719,0.00016529,2]
[400565217,1767722757762,-229.02757741,0.00016529,2]
[400565218,1767722761214,-227.1731616,0.00016529,2]
[400565219,1767722799319,-743.79926099,0.00016529,2]
[400565220,1767722799341,-300.0,0.00016529,2]
[400565221,1767722799366,-202.67812307,0.0001653,2]
[400565222,1767722799388,-3254.82997629,0.0001653,2]
[400565223,1767722833115,-300.0,0.00016529,2]
[400565224,1767722833136,-919.07227748,0.0001653,2]
[400565225,1767722960496,-300.0,0.00016529,2]
[400565226,1767722960521,-102.12800256,0.0001653,2]
[400565227,1767722964702,-322.85125843,0.0001653,2]
[400565245,1767723031676,-1200.0,0.00016529,2]
[400565246,1767723031686,-5179.73160868,0.0001653,2]
[400565247,1767723031698,-804.0,0.0001653,2]
[400565248,1767723031779,-3969.79809846,0.0001653,2]
[400565249,1767723031788,-300.0,0.0001653,2]
[400565250,1767723031798,-300.0,0.0001653,2]
[400565251,1767723031808,-172.60614,0.00016531,2]
[400565252,1767723031818,-307.63734742,0.00016532,2]
[400565253,1767723031827,-151.0,0.00016532,2]
[400565254,1767723031837,-3925.85841413,0.0001681,2]
[400565255,1767723031856,-18341.1777839,0.0001681,2]
[400565256,1767723031868,-1208.34711293,0.0001681,2]
[400565257,1767723031879,-5053.18464369,0.0001681,2]
[400565258,1767723031891,-300.0,0.0001681,2]
[400565259,1767723031967,-3212.59999994,0.0001681,2]
[400565260,1767723031978,-323.04800006,0.0001681,2]
[400565400,1767723037767,-235.86399792,0.0001681,2]
[400565401,1767723037778,-230.72801057,0.0001681,2]
[400565402,1767723037787,-13318.698212,0.0001681,2]
[400565403,1767723037799,-797.15215664,0.0001681,2]
[400565404,1767723037826,-348414.62079998,0.0001681,2]
[400565406,1767723038136,-22560.15860279,0.0001681,2]
[400565407,1767723038153,-4080.00000013,0.0001681,2]
[400565408,1767723038167,-1372.1631366,0.0001681,2]
[400565409,1767723038186,-3354.35483825,0.0001681,2]
[400565432,1767723039838,-459.18,0.0001681,2]
[400565433,1767723039849,-9067.80647665,0.0001681,2]
[400565434,1767723039861,-3063.35789132,0.0001681,2]
[400565435,1767723039946,-17383.14393672,0.0001681,2]
[400565436,1767723040002,-17638.83077168,0.0001681,2]
[400565437,1767723042203,-1.7e-07,0.0001681,2]
[400565446,1767723042577,-15266.00000184,0.0001681,2]
[400565448,1767723042590,-311.79400032,0.0001681,2]
[400565449,1767723042601,-254.85172985,0.0001681,2]
[400565468,1767723044180,-2013.12302913,0.0001681,2]
[400565476,1767723045480,-508280.54846128,0.0001681,2]
[400565478,1767723045491,-1500.0,0.00016959,2]
[400565481,1767723045501,-1852.42,0.00016972,2]
[400565483,1767723045511,-2766.19,0.00016986,2]
[400565484,1767723045519,-500.0,0.00017026,2]
[400565486,1767723045529,-200.0,0.00017026,2]
[400565489,1767723045539,-313.6187001,0.00017168,2]
[400565491,1767723045548,-1237.98,0.00017211,2]
[400565492,1767723045558,-150.0,0.00017215,2]
[400565493,1767723045567,-8077.35,0.00017261,2]
[400565494,1767723045577,-2563.71,0.00017421,2]
[400565495,1767723045587,-166.66,0.00017597,2]
[400565496,1767723045596,-151.0,0.00017616,2]
[400565497,1767723045605,-623.0,0.00017616,2]
[400565498,1767723045615,-4507.1594422,0.0001781,2]
[400565499,1767723045624,-19999.99,0.000179,2]
[400565500,1767723045634,-8400.51962541,0.000179,2]
[400565501,1767723045644,-23822.2134,0.000179,2]
[400565502,1767723045653,-2500.0,0.000179,2]
[400565503,1767723045662,-6703.2125,0.000179,2]
[400565504,1767723045671,-236.4778,0.000179,2]
[400565505,1767723045681,-1000.0,0.000179,2]
[400565506,1767723045690,-620.0,0.00017989,2]
[400565507,1767723045699,-500.0,0.00017989,2]
[400565508,1767723045708,-151.0,0.00017989,2]
[400565509,1767723045718,-500.0,0.00017989,2]
[400565510,1767723045727,-151.0,0.00017989,2]
[400565511,1767723045736,-500.0,0.00017989,2]
[400565512,1767723045745,-151.0,0.00017989,2]
[400565513,1767723045755,-500.0,0.00017989,2]
[400565514,1767723045764,-151.0,0.00017989,2]
[400565515,1767723045774,-500.0,0.00017989,2]
[400565516,1767723045784,-151.0,0.00017989,2]
[400565517,1767723045794,-500.0,0.00017989,2]
[400565518,1767723045803,-151.0,0.00017989,2]
[400565519,1767723045813,-500.0,0.00017989,2]
[400565520,1767723045822,-151.0,0.00017989,2]
[400565521,1767723045832,-500.0,0.00017989,2]
[400565522,1767723045841,-151.0,0.00017989,2]
[400565523,1767723045852,-500.0,0.00017989,2]
[400565524,1767723045861,-151.0,0.00017989,2]
[400565525,1767723045870,-500.0,0.00017989,2]
[400565526,1767723045879,-151.0,0.00017989,2]
[400565527,1767723045889,-500.0,0.00017989,2]
[400565528,1767723045899,-151.0,0.00017989,2]
[400565529,1767723045908,-500.0,0.00017989,2]
[400565530,1767723045920,-500.0,0.00017989,2]
[400565531,1767723045929,-500.0,0.00017989,2]
[400565532,1767723045938,-500.0,0.00017989,2]
[400565533,1767723045948,-500.0,0.00017989,2]
[400565534,1767723045957,-500.0,0.00017989,2]
[400565535,1767723045967,-500.0,0.00017989,2]
[400565536,1767723045975,-500.0,0.00017989,2]
[400565537,1767723045985,-500.0,0.00017989,2]
[400565538,1767723045994,-500.0,0.00017989,2]
[400565539,1767723046003,-500.0,0.00017989,2]
[400565540,1767723046012,-288.90952296,0.00017999,2]
[400565541,1767723046021,-500.0,0.00017999,2]
[400565542,1767723046030,-500.0,0.00017999,2]
[400565543,1767723046039,-500.0,0.00017999,2]
[400565544,1767723046048,-500.0,0.00017999,2]
[400565545,1767723046058,-500.0,0.00017999,2]
[400565546,1767723046067,-500.0,0.00017999,2]
[400565547,1767723046077,-500.0,0.00017999,2]
[400565548,1767723046086,-359.05070737,0.00017999,2]
[400565549,1767723046096,-341013.59875059,0.00018,2]
[400565550,1767723046104,-23372.94323955,0.00018,2]
[400565552,1767723046125,-4575.0,0.00018,2]
[400565554,1767723046136,-4570.17537243,0.00018,2]
[400565557,1767723046151,-13344.24438613,0.00018,2]
[400565564,1767723046214,-500.14526229,0.00018,2]
[400565585,1767723046400,-3996.10047086,0.00018,2]
[400565588,1767723046419,-8244.25908321,0.00018,2]
[400565591,1767723046439,-4470.0,0.00018,2]
[400565593,1767723046451,-6700.32345,0.00018,2]
[400565609,1767723095861,500.0,0.00032877,120]
[400565610,1767723110946,500.0,0.00032877,120]
[400565611,1767723136564,500.0,0.00032877,120]
[400565612,1767723153082,500.37,0.00032877,120]
[400565613,1767723170472,-521.20759762,0.0001653,2]
[400565614,1767723170494,-314.03395353,0.0001653,2]
[400565615,1767723175223,-185.96604647,0.0001653,2]
[400565616,1767723175249,-114.35490012,0.0001653,2]
[400565622,1767723322136,500.0,0.00029399,120]
[400565623,1767723322402,500.0,0.00031506,120]
[400565624,1767723396195,-253.57249102,0.00016529,2]
[400565625,1767723398447,-46.42750898,0.00016529,2]
[400565626,1767723398471,-344.09,0.0001653,2]
[400565627,1767723605474,-337.44414072,0.000165,2]
[400565628,1767723620666,-162.55585928,0.000165,2]
[400565629,1767723620688,-88.65281878,0.00016529,2]
[400565630,1767723799287,163.68,0.0003158,120]
[400565631,1767723969081,-215.91,0.00016343,2]
[400565632,1767723969112,-202.82,0.00016429,2]
[400565633,1767723969153,-300.0,0.00016529,2]
[400565634,1767723969192,-1200.0,0.00016529,2]
[400565635,1767723969224,-300.0,0.00016529,2]
[400565636,1767723969254,-27.7986595,0.0001653,2]
[400565637,1767723969284,-500.0,0.0001653,2]
[400565638,1767723969644,-500.0,0.0001653,2]
[400565639,1767723969676,-500.0,0.0001653,2]
[400565640,1767723969704,-516.50114519,0.0001653,2]
[400565641,1767723969732,-500.0,0.0001653,2]
[400565642,1767723970579,-320.72039062,0.0001653,2]
[400565644,1767723980750,-179.27960938,0.0001653,2]
[400565645,1767723980779,-500.0,0.0001653,2]
[400565646,1767723980806,-500.0,0.0001653,2]
[400565647,1767723980834,-500.0,0.0001653,2]
[400565648,1767723980862,-500.0,0.0001653,2]
[400565649,1767723980891,-640.35101974,0.0001653,2]
[400565650,1767723980919,-500.0,0.0001653,2]
[400565651,1767723980948,-500.0,0.0001653,2]
[400565652,1767723980977,-500.0,0.0001653,2]
[400565653,1767723981005,-562.37594592,0.0001653,2]
[400565654,1767723981224,-500.0,0.0001653,2]
[400565655,1767723981252,-500.0,0.0001653,2]
[400565656,1767723981280,-500.0,0.0001653,2]
[400565657,1767723981308,-500.0,0.0001653,2]
[400565658,1767723981337,-753.29,0.0001653,2]
[400565659,1767723981366,-1597.55,0.00016585,2]
[400565660,1767723981400,-150.0,0.00016631,2]
[400565661,1767723981430,-245.04,0.00016804,2]
[400565662,1767723981532,-508.25,0.00016804,2]
[400565663,1767723981562,-500.0,0.0001681,2]
[400565664,1767723981592,-500.0,0.0001681,2]
[400565665,1767723981622,-500.0,0.0001681,2]
[400565666,1767723981652,-500.0,0.0001681,2]
[400565667,1767723981683,-168.0,0.0001683,2]
[400565668,1767723981710,-200.0,0.00016839,2]
[400565669,1767723981741,-928.23902798,0.00016858,2]
[400565670,1767723982474,-2391.03194404,0.00016858,2]
[400565671,1767723982483,-168.0,0.0001702,2]
[400565672,1767723982493,-576.24684992,0.00017061,2]
[400565673,1767723982623,-1923.75315008,0.00017061,2]
[400565674,1767723982699,-3296.7975,0.00017061,2]
[400565675,1767723982745,-2855.70619984,0.00017061,2]
[400565676,1767723982777,-550.70880016,0.00017061,2]
[400565677,1767723982807,-753.29,0.00017078,2]
[400565678,1767723982839,-168.0,0.00017089,2]
[400565679,1767723982868,-1341.039,0.00017089,2]
[400565680,1767723982899,-165.316,0.00017089,2]
[400565681,1767723982959,-3724.85869984,0.00017095,2]
[400565682,1767723982982,-550.70880016,0.00017095,2]
[400565683,1767723982998,-753.29,0.00017095,2]
[400565684,1767723983012,-168.0,0.00017095,2]
[400565685,1767723983057,-4140.62056822,0.00017095,2]
[400565686,1767723983118,-1409.03683146,0.00017095,2]
[400565687,1767723983145,-309.7320321,0.00017095,2]
[400565688,1767723983155,-3837.11318596,0.00017095,2]
[400565689,1767723983165,-542.16769764,0.00017095,2]
[400565690,1767723983175,-174.59246434,0.00017095,2]
[400565691,1767723983185,-250.0,0.000171,2]
[400565692,1767723983194,-620.0,0.00017151,2]
[400565693,1767723983204,-125.78405174,0.00017151,2]
[400565694,1767723983247,-374.21594826,0.00017151,2]
[400565695,1767723983278,-500.0,0.00017151,2]
[400565696,1767723983310,-500.0,0.00017151,2]
[400565697,1767723983342,-500.0,0.00017151,2]
[400565698,1767723983372,-500.0,0.00017151,2]
[400565699,1767723983406,-500.0,0.00017151,2]
[400565700,1767723983439,-500.0,0.00017151,2]
[400565701,1767723983471,-500.0,0.00017151,2]
[400565702,1767723983504,-500.0,0.00017151,2]
[400565703,1767723983535,-151.0,0.00017151,2]
[400565704,1767723983566,-449.57810348,0.00017151,2]
[400565705,1767723983828,-50.42189652,0.00017151,2]
[400565707,1767724010150,-151.0,0.00017151,2]
[400565708,1767724010180,-500.0,0.00017151,2]
[400565709,1767724010208,-151.0,0.00017151,2]
[400565710,1767724010236,-151.0,0.00017151,2]
[400565711,1767724010265,-151.0,0.00017151,2]
[400565712,1767724010295,-151.0,0.00017151,2]
[400565713,1767724010326,-500.0,0.00017151,2]
[400565714,1767724010354,-151.0,0.00017151,2]
[400565715,1767724010384,-500.0,0.00017151,2]
[400565716,1767724010417,-151.0,0.00017151,2]
[400565717,1767724010445,-500.0,0.00017151,2]
[400565718,1767724010475,-500.0,0.00017151,2]
[400565719,1767724010504,-151.0,0.00017151,2]
[400565720,1767724010536,-500.0,0.00017151,2]
[400565721,1767724010565,-151.0,0.00017151,2]
[400565722,1767724010593,-500.0,0.00017151,2]
[400565723,1767724010622,-131.01,0.00017151,2]
[400565724,1767724010767,-19.99,0.00017151,2]
[400565725,1767724010798,-500.0,0.00017151,2]
[400565726,1767724010828,-500.0,0.00017151,2]
[400565727,1767724010857,-500.0,0.00017151,2]
[400565728,1767724010886,-500.0,0.00017151,2]
[400565729,1767724010917,-500.0,0.00017151,2]
[400565730,1767724010947,-302.6275462,0.0001716,2]
[400565731,1767724010976,-337.94825325,0.0001716,2]
[400565732,1767724011019,-500.0,0.0001716,2]
[400565733,1767724011049,-500.0,0.0001716,2]
[400565734,1767724011080,-494.59030879,0.0001716,2]
[400565735,1767724011113,-260.91437159,0.0001716,2]
[400565736,1767724012315,-167.86904034,0.0001716,2]
[400565737,1767724012325,-55.31070705,0.0001716,2]
[400565738,1767724013674,-5000.00282289,0.000162,5]
[400565739,1767724013700,-0.00435422,0.000162,5]
[400565740,1767724013882,-448.44232006,0.0001716,2]
[400565741,1767724013913,-500.0,0.0001716,2]
[400565742,1767724013944,-500.0,0.0001716,2]
[400565743,1767724013973,-500.0,0.0001716,2]
[400565744,1767724014003,-621.72362606,0.0001716,2]
[400565745,1767724014038,-500.0,0.0001716,2]
[400565746,1767724014068,-500.0,0.0001716,2]
[400565747,1767724014100,-500.0,0.0001716,2]
[400565748,1767724014130,-550.60903699,0.0001716,2]
[400565749,1767724014160,-258.46003378,0.0001716,2]
[400565750,1767724014306,-241.53996622,0.0001716,2]
[400565751,1767724014336,-500.77062601,0.0001716,2]
[400565752,1767724014366,-500.0,0.0001716,2]
[400565753,1767724014403,-500.0,0.0001716,2]
[400565754,1767724014433,-500.0,0.0001716,2]
[400565755,1767724014464,-500.0,0.0001716,2]
[400565756,1767724014504,-500.0,0.0001716,2]
[400565757,1767724014542,-500.0,0.0001716,2]
[400565758,1767724014572,-500.0,0.0001716,2]
[400565759,1767724014602,-500.0,0.0001716,2]
[400565761,1767724022047,515.38881554,0.00016861,3]
[400565762,1767724023565,-483.61118446,0.00016861,3]
[400565763,1767724031006,620.0,0.00017151,2]
[400565764,1767724034028,500.0,0.00017151,2]
[400565765,1767724035142,500.0,0.00017151,2]
[400565766,1767724035779,500.0,0.00017151,2]
[400565767,1767724036422,500.0,0.00017151,2]
[400565768,1767724037040,500.0,0.00017151,2]
[400565769,1767724037669,500.0,0.00017151,2]
[400565770,1767724038317,500.0,0.00017151,2]
[400565771,1767724038973,500.0,0.00017151,2]
[400565772,1767724040099,500.0,0.00017151,2]
[400565773,1767724040459,151.0,0.00017151,2]
[400565774,1767724040738,500.0,0.00017151,2]
[400565775,1767724041119,151.0,0.00017151,2]
[400565776,1767724041366,500.0,0.00017151,2]
[400565777,1767724041726,174.59246434,0.00017095,2]
[400565778,1767724041807,151.0,0.00017151,2]
[400565779,1767724042423,151.0,0.00017151,2]
[400565780,1767724043044,151.0,0.00017151,2]
[400565781,1767724044186,151.0,0.00017151,2]
[400565782,1767724044246,500.0,0.00017151,2]
[400565783,1767724044334,151.0,0.00017151,2]
[400565784,1767724045052,500.0,0.00017151,2]
[400565785,1767724045454,151.0,0.00017151,2]
[400565786,1767724045684,500.0,0.00017151,2]
[400565787,1767724046097,30.19516674,0.00017151,2]
[400565788,1767724046121,120.80483326,0.00017151,2]
[400565789,1767724046342,500.0,0.00017151,2]
[400565790,1767724046755,151.0,0.00017151,2]
[400565791,1767724046969,500.0,0.00017151,2]
[400565792,1767724047396,151.0,0.00017151,2]
[400565793,1767724047633,500.0,0.00017151,2]
[400565794,1767724048292,500.0,0.00017151,2]
[400565795,1767724048947,500.0,0.00017151,2]
[400565796,1767724050072,500.0,0.00017151,2]
[400565797,1767724050704,500.0,0.00017151,2]
[400565798,1767724051125,-2453.13692322,0.00017161,2]
[400565799,1767724051374,500.0,0.00017151,2]
[400565800,1767724060727,5577.20516674,0.00017078,2]
[400565801,1767724060759,4913.01473119,0.00017078,2]
[400565803,1767724066528,2324.2213,0.00017061,2]
[400565805,1767724081207,300.0,0.0001716,2]
[400565807,1767724102682,500.0,0.0001716,2]
[400565808,1767724103183,506.98336707,0.0001716,2]
[400565810,1767724115293,1455.79060174,0.00017061,2]
[400565811,1767724115318,626.64249826,0.00017061,2]
[400565812,1767724117570,6363.9415485,0.00016,4]
[400565813,1767724143079,500.14085677,0.00017078,2]
[400565814,1767724160541,2509.28509647,0.00016961,2]
[400565815,1767724160568,10000.01,0.00016961,2]
[400565816,1767724160592,10000.01,0.00016961,2]
[400565817,1767724160618,10000.01,0.00016961,2]
[400565818,1767724160642,10000.01,0.00016961,2]
[400565819,1767724160666,10000.01,0.00016961,2]
[400565820,1767724160691,10000.01,0.00016961,2]
[400565821,1767724160714,10000.01,0.00016961,2]
[400565822,1767724160738,10000.01,0.00016961,2]
[400565823,1767724160761,10000.01,0.00016961,2]
[400565824,1767724199455,-1000.0,0.00016833,2]
[400565825,1767724201243,-300.0,0.0001696,2]
[400565826,1767724201273,-1200.0,0.0001696,2]
[400565827,1767724211963,-550.0,0.0001696,2]
[400565828,1767724213469,-4385.42601772,0.00016951,2]
[400565829,1767724214163,-973.39,0.00016815,2]
[400565830,1767724214172,-9026.62,0.00016951,2]
[400565831,1767724214251,-7402.59398228,0.00016951,2]
[400565832,1767724214260,-2597.41601772,0.00016951,2]
[400565850,1767724231849,-14178.81755267,0.00016961,2]
[400565851,1767724231880,-2319.63230141,0.00016961,2]
[400565852,1767724231922,-427.13399201,0.00016961,2]
[400565853,1767724232057,-9183.12310435,0.00016961,2]
[400565873,1767724235480,500.0,0.0001696,2]
[400565874,1767724235714,546.21321616,0.0001696,2]
[400565875,1767724235750,247.15998939,0.0001696,2]
[400565876,1767724236003,211.83928234,0.0001696,2]
[400565879,1767724238069,-272.5707692,0.00016961,2]
[400565880,1767724238080,-7623.6322601,0.00016961,2]
[400565881,1767724238092,-873485.71492379,0.00016961,2]
[400565882,1767724238102,-174.59246434,0.00017069,2]
[400565883,1767724238112,-3714.42074024,0.00017069,2]
[400565884,1767724238121,-500.0,0.0001716,2]
[400565886,1767724238131,-500.0,0.0001716,2]
[400565888,1767724238141,-500.0,0.0001716,2]
[400565890,1767724238151,-400.0,0.0001716,2]
[400565892,1767724238160,-410.84842818,0.00017169,2]
[400565894,1767724238170,-600.0,0.00017178,2]
[400565896,1767724238180,-168.0,0.00017195,2]
[400565898,1767724238189,-168.0,0.00017227,2]
[400565900,1767724238199,-753.29,0.00017352,2]
[400565902,1767724238207,-545.75672038,0.0001736,2]
[400565904,1767724238216,-415.0,0.000174,2]
[400565906,1767724238225,-168.0,0.00017405,2]
[400565908,1767724238235,-1597.55,0.00017415,2]
[400565910,1767724238244,-151.0,0.00017461,2]
[400565912,1767724238254,-151.0,0.00017464,2]
[400565914,1767724238264,-1967.10251088,0.000175,2]
[400565916,1767724238273,-168.0,0.00017615,2]
[400565918,1767724238284,-753.29,0.00017626,2]
[400565920,1767724238293,-1662.0624459,0.0001764,2]
[400565922,1767724238302,-168.0,0.00017646,2]
[400565924,1767724238311,-527.32,0.00017728,5]
[400565926,1767724238321,-499.99,0.00017728,2]
[400565928,1767724238330,-150.99,0.00017728,2]
[400565930,1767724238339,-4999.99,0.00017728,2]
[400565932,1767724238348,-8232.39,0.00017728,2]
[400565934,1767724238357,-3203.34,0.00017728,2]
[400565936,1767724238367,-1838.72,0.00017728,2]
[400565938,1767724238377,-9999.99,0.00017728,2]
[400565940,1767724238386,-4533.63,0.00017728,2]
[400565942,1767724238395,-2094.78,0.00017728,2]
[400565944,1767724238406,-6310.62,0.00017728,2]
[400565946,1767724238415,-150.99,0.00017728,2]
[400565948,1767724238424,-300.0,0.00017728,2]
[400565950,1767724238434,-300.0,0.00017728,2]
[400565952,1767724238443,-300.0,0.00017731,2]
[400565954,1767724238452,-300.0,0.00017734,2]
[400565956,1767724238462,-300.0,0.00017743,2]
[400565958,1767724238473,-300.0,0.00017761,2]
[400565960,1767724238484,-300.0,0.00017763,2]
[400565962,1767724238493,-300.0,0.00017763,2]
[400565964,1767724238502,-168.0,0.00017763,2]
[400565966,1767724238511,-300.0,0.00017775,2]
[400565968,1767724238521,-300.0,0.00017784,2]
[400565970,1767724238531,-301.16616672,0.000178,2]
[400565972,1767724238540,-1000.0,0.000178,2]
[400565974,1767724238552,-300.0,0.00017805,2]
[400565976,1767724238561,-674.85512343,0.00017805,2]
[400565978,1767724238570,-323.28463124,0.00017816,2]
[400565980,1767724238580,-300.0,0.00017835,2]
[400565982,1767724238589,-300.0,0.00017835,2]
[400565984,1767724238598,-300.0,0.00017838,2]
[400565986,1767724238608,-300.0,0.00017844,2]
[400565988,1767724238617,-150.0,0.00017845,2]
[400565990,1767724238626,-1000.0,0.00017856,2]
[400565992,1767724238635,-168.0,0.00017875,2]
[400565994,1767724238644,-300.0,0.00017877,2]
[400565996,1767724238653,-300.0,0.00017884,2]
[400565998,1767724238662,-300.0,0.00017898,2]
[400566000,1767724238671,-1000.0,0.000179,2]
[400566002,1767724238680,-753.30673601,0.000179,2]
[400566004,1767724238689,-1000.0,0.000179,2]
[400566006,1767724238699,-250.0,0.000179,2]
[400566008,1767724238708,-1000.0,0.000179,2]
[400566010,1767724238717,-1000.0,0.000179,2]
[400566012,1767724238726,-465.27484986,0.000179,2]
[400566014,1767724238735,-1109.99645956,0.000179,2]
[400566016,1767724238745,-4542.0,0.000179,2]
[400566018,1767724238754,-300.0,0.00017915,2]
[400566019,1767724238763,-1000.0,0.00017923,2]
[400566021,1767724238772,-300.0,0.00017934,2]
[400566023,1767724238782,-300.0,0.00017936,2]
[400566025,1767724238791,-152.53735496,0.0001795,2]
[400566027,1767724238800,-300.0,0.00017957,2]
[400566029,1767724238809,-1000.0,0.00017968,2]
[400566031,1767724238819,-500.0,0.00017973,2]
[400566033,1767724238828,-500.0,0.00017973,2]
[400566036,1767724238838,-500.0,0.00017973,2]
[400566038,1767724238847,-250.0,0.00017977,2]
[400566040,1767724238857,-1000.0,0.00017979,2]
[400566042,1767724238866,-300.0,0.00017984,2]
[400566044,1767724238876,-1164.57792283,0.00017986,2]
[400566046,1767724238885,-300.0,0.00017986,2]
[400566048,1767724238895,-500.0,0.00017995,2]
[400566050,1767724238905,-500.0,0.00017995,2]
[400566052,1767724238915,-508675.4078413,0.00017996,2]
[400566075,1767724239141,-500.0,0.00017999,2]
[400566077,1767724239151,-500.0,0.00017999,2]